bitfinex-derivatives/quotes_BTCF0:USTF0_20250718
["timestamp","ask_amount","ask_price","bid_price","bid_amount"]
[1752848000586,0.85228853,119220.0,119210.0,0.36086389]
[1752848000786,0.85228853,119220.0,119210.0,6.389e-05]
[1752848001386,0.35067907,119220.0,119210.0,6.389e-05]
[1752848001789,0.85228853,119220.0,119210.0,0.36086389]
[1752848002187,0.85228853,119220.0,119210.0,0.38316979]
[1752848002379,0.2633908,119220.0,119210.0,0.36086389]
[1752848002689,0.2633908,119220.0,119210.0,1.11701415]
[1752848002889,0.2633908,119220.0,119210.0,0.61540469]
[1752848003086,0.2840108,119220.0,119210.0,0.43571979]
[1752848003294,0.2840108,119220.0,119210.0,0.38316979]
[1752848003491,0.78562026,119220.0,119210.0,0.36086389]
[1752848003787,0.2840108,119220.0,119210.0,0.38316979]
[1752848003988,0.78562026,119220.0,119210.0,0.02236979]
[1752848004291,0.78562026,119220.0,119210.0,0.66288979]
[1752848004889,1.14642026,119220.0,119210.0,6.389e-05]
[1752848006387,0.2840108,119220.0,119210.0,6.389e-05]
[1752848006691,0.2840108,119220.0,119210.0,0.36086389]
[1752848006886,0.2840108,119220.0,119210.0,0.54990879]
[1752848007092,0.2840108,119220.0,119210.0,1.08268825]
[1752848007295,0.2840108,119220.0,119210.0,0.58107879]
[1752848007690,0.2840108,119220.0,119210.0,0.55969879]
[1752848007886,0.2840108,119220.0,119210.0,0.59309879]
[1752848008090,0.1676508,119220.0,119210.0,1.09470825]
[1752848008296,0.4097421,119230.0,119220.0,0.1676508]
[1752848008497,0.2095584,119230.0,119220.0,1.73507026]
[1752848008797,0.2514472,119240.0,119230.0,0.2322068]
[1752848009094,0.2514472,119240.0,119230.0,1.09461626]
[1752848009290,0.3471872,119240.0,119230.0,1.09461626]
[1752848009490,0.3471872,119240.0,119230.0,0.5930068]
[1752848010288,0.3678072,119240.0,119230.0,0.3608]
[1752848010489,0.1676367,119230.0,119210.0,0.67691599]
[1752848010695,0.2836708,119220.0,119210.0,0.67691599]
[1752848010995,0.2836708,119220.0,119210.0,1.31691599]
[1752848011195,0.2836708,119220.0,119210.0,1.27500139]
[1752848012896,0.2836708,119220.0,119210.0,1.23909139]
[1752848013499,0.2836708,119220.0,119210.0,1.77339085]
[1752848013699,0.1676508,119220.0,119210.0,1.77339085]
[1752848014902,0.2933814,119230.0,119220.0,0.2184108]
[1752848015201,0.2933814,119230.0,119220.0,0.60904344]
[1752848015399,0.3884514,119230.0,119220.0,0.45270264]
[1752848015603,0.4087314,119230.0,119220.0,0.39063264]
[1752848015899,0.4087314,119230.0,119220.0,1.02955264]
[1752848016197,0.4087314,119230.0,119220.0,1.19720344]
[1752848016402,0.4087314,119230.0,119220.0,1.25927344]
[1752848016603,0.3884514,119230.0,119220.0,1.7608829]
[1752848016792,0.2933814,119230.0,119220.0,1.25927344]
[1752848016993,0.2514693,119230.0,119220.0,1.7608829]
[1752848017299,0.167648,119230.0,119220.0,1.80563292]
[1752848017491,0.251444,119240.0,119230.0,0.2297068]
[1752848017693,0.251444,119240.0,119230.0,1.13686628]
[1752848019401,0.251444,119240.0,119230.0,0.63525682]
[1752848020002,0.299294,119240.0,119230.0,1.13686628]
[1752848020406,0.299294,119240.0,119230.0,0.63525682]
[1752848020600,0.299294,119240.0,119230.0,1.14516565]
[1752848020898,0.2514294,119250.0,119240.0,0.2296927]
[1752848021202,0.2514294,119250.0,119240.0,1.76091357]
[1752848021400,0.257374,119250.0,119240.0,1.27416272]
[1752848021596,0.2626786,119250.0,119240.0,1.77577218]
[1752848022204,0.2626786,119250.0,119240.0,1.27416272]
[1752848022403,0.2626786,119250.0,119240.0,1.77577218]
[1752848022795,0.2626786,119250.0,119240.0,1.27416272]
[1752848022999,0.2626786,119250.0,119240.0,1.77577218]
[1752848023797,0.2626786,119250.0,119240.0,1.27416272]
[1752848024002,0.2626786,119250.0,119240.0,1.77577218]
[1752848024199,0.2297775,119260.0,119240.0,1.60814948]
[1752848024406,0.2513991,119260.0,119250.0,1.14435142]
[1752848024606,0.3667491,119260.0,119250.0,0.62034338]
[1752848025307,0.3667359,119270.0,119260.0,0.1969746]
[1752848025506,0.3667359,119270.0,119260.0,0.61285195]
[1752848025906,0.3667359,119270.0,119260.0,0.38318735]
[1752848026503,0.1675946,119260.0,119250.0,0.41305213]
[1752848026704,1.14535406,119260.0,119250.0,0.66166735]
[1752848027009,0.2829586,119250.0,119240.0,0.05225771]
[1752848027211,1.81469752,119250.0,119240.0,0.02239293]
[1752848027605,1.31308806,119250.0,119240.0,0.02239293]
[1752848028204,1.81469752,119250.0,119240.0,0.02239293]
[1752848028504,0.2829586,119250.0,119240.0,0.02239293]
[1752848028811,0.2829727,119240.0,119230.0,1.12197864]
[1752848029014,0.1676227,119240.0,119230.0,1.77886388]
[1752848029215,0.1676227,119240.0,119230.0,1.73411386]
[1752848029414,0.2207818,119250.0,119240.0,0.2183827]
[1752848029415,0.3464974,119250.0,119240.0,0.2183827]
[1752848029610,0.3464974,119250.0,119240.0,1.13687323]
[1752848029910,0.3464974,119250.0,119240.0,0.5904927]
[1752848030118,0.3667774,119250.0,119240.0,0.5904927]
[1752848030417,0.3667774,119250.0,119240.0,0.62034347]
[1752848031217,0.3667774,119250.0,119240.0,0.61288605]
[1752848033914,0.3667774,119250.0,119240.0,0.61004682]
[1752848034113,0.3667774,119250.0,119240.0,0.58765347]
[1752848034309,0.3667774,119250.0,119240.0,1.03117077]
[1752848034514,0.86838686,119250.0,119240.0,1.03117077]
[1752848035117,0.3667774,119250.0,119240.0,1.03117077]
[1752848035410,0.86838686,119250.0,119240.0,0.39065077]
[1752848035615,0.3667774,119250.0,119240.0,0.69193975]
[1752848035811,0.86838686,119250.0,119240.0,0.69193975]
[1752848036315,0.3667774,119250.0,119240.0,0.66953077]
[1752848036514,0.86838686,119250.0,119240.0,0.66953077]
[1752848038113,1.22918686,119250.0,119240.0,0.02985077]
[1752848039416,2.02851632,119250.0,119240.0,7e-08]
[1752848039617,0.2829867,119230.0,119220.0,0.04477107]
[1752848039817,1.14539616,119230.0,119220.0,0.04477107]
[1752848040316,1.26539616,119230.0,119220.0,0.04477107]
[1752848040516,0.2830008,119220.0,119210.0,0.04483496]
[1752848040719,0.78461026,119220.0,119210.0,0.04483496]
[1752848040916,1.14541026,119220.0,119210.0,0.04483496]
[1752848041117,0.95237826,119220.0,119210.0,0.04483496]
[1752848041423,0.167679,119200.0,119190.0,0.69862669]
[1752848041620,0.78255846,119200.0,119190.0,0.69862669]
[1752848041816,0.78255846,119200.0,119190.0,0.05966669]
[1752848042217,0.280949,119200.0,119190.0,0.05966669]
[1752848042618,0.09317,119200.0,119190.0,1.09850246]
[1752848042818,0.09317,119210.0,119200.0,0.236079]
[1752848043024,0.2608349,119210.0,119200.0,1.86482203]
[1752848043226,0.4066787,119220.0,119210.0,0.1676649]
[1752848043526,0.4066787,119220.0,119210.0,0.5968649]
[1752848044025,0.4066787,119220.0,119210.0,0.5473449]
[1752848044222,0.4066787,119220.0,119210.0,0.5284649]
[1752848045328,0.4066787,119220.0,119210.0,0.5473449]
[1752848045725,0.2608349,119210.0,119200.0,1.42565497]
[1752848045923,0.2809349,119210.0,119200.0,1.36581828]
[1752848046421,0.2809349,119210.0,119200.0,0.69867828]
[1752848046621,0.2809349,119210.0,119200.0,1.33763828]
[1752848047329,0.2809349,119210.0,119200.0,1.36589828]
[1752848047725,0.2608349,119210.0,119200.0,1.38727828]
[1752848049818,0.2608349,119210.0,119200.0,1.88888774]
[1752848050826,0.2608349,119210.0,119200.0,1.38727828]
[1752848051020,0.2608349,119210.0,119200.0,1.88888774]
[1752848051221,0.1291243,119240.0,119220.0,0.2498074]
[1752848051420,0.1676368,119230.0,119220.0,0.6807781]
[1752848051628,0.1676368,119230.0,119220.0,1.54318756]
[1752848051822,0.3027082,119240.0,119230.0,0.2361568]
[1752848052028,0.2095382,119240.0,119230.0,1.74708626]
[1752848052233,0.3026899,119250.0,119240.0,0.1676227]
[1752848052529,0.3445947,119250.0,119240.0,1.09855216]
[1752848052826,0.3445947,119250.0,119240.0,0.60540107]
[1752848052827,0.3026899,119250.0,119240.0,0.60540107]
[1752848053028,0.3026899,119250.0,119240.0,1.10701053]
[1752848053625,0.2095199,119250.0,119240.0,1.10701053]
[1752848054325,0.3026899,119250.0,119240.0,0.60540107]
[1752848054725,0.3026899,119250.0,119240.0,1.10701053]
[1752848054927,0.3227899,119250.0,119240.0,0.40794]
[1752848055231,0.3227899,119250.0,119240.0,1.00856]
[1752848055432,0.3227899,119250.0,119240.0,1.1761827]
[1752848055632,0.3227899,119250.0,119240.0,1.00856]
[1752848056832,0.1676227,119240.0,119230.0,0.37968]
[1752848057033,0.2808927,119240.0,119230.0,1.0086]
[1752848057240,0.2808927,119240.0,119230.0,1.1762367]
[1752848057435,0.2808927,119240.0,119230.0,1.0086]
[1752848058031,0.78250216,119240.0,119230.0,0.3608]
[1752848058330,0.2808927,119240.0,119230.0,1.02996599]
[1752848058532,0.2808927,119240.0,119230.0,1.24474279]
[1752848058833,0.2808927,119240.0,119230.0,1.26612279]
[1752848059135,0.2607927,119240.0,119230.0,1.76773225]
[1752848059336,0.2607927,119240.0,119230.0,1.74532626]
[1752848060430,0.2607927,119240.0,119230.0,1.31041918]
[1752848061134,0.2808927,119240.0,119230.0,0.44638238]
[1752848061334,0.2808927,119240.0,119230.0,1.13719342]
[1752848061533,0.2808927,119240.0,119230.0,0.47231342]
[1752848061736,0.2808927,119240.0,119230.0,1.11851342]
[1752848061928,0.2808927,119240.0,119230.0,1.28607022]
[1752848062125,0.2808927,119240.0,119230.0,1.30495022]
[1752848062930,0.2808927,119240.0,119230.0,1.13731342]
[1752848063235,0.2808927,119240.0,119230.0,1.30495012]
[1752848063431,0.2808927,119240.0,119230.0,0.44638238]
[1752848063632,0.2809068,119230.0,119220.0,0.40561104]
[1752848063832,0.78251626,119230.0,119220.0,0.69141104]
[1752848064026,0.78251626,119230.0,119220.0,0.6466]
[1752848064335,0.78251626,119230.0,119220.0,0.69141104]
[1752848064732,0.78251626,119230.0,119220.0,0.6466]
[1752848064930,0.78251626,119230.0,119220.0,0.69141104]
[1752848065130,0.2809068,119230.0,119220.0,0.6466]
[1752848065839,0.78251626,119230.0,119220.0,0.6466]
[1752848066034,1.14331626,119230.0,119220.0,0.6466]
[1752848066234,0.2809208,119220.0,119210.0,0.04481104]
[1752848066429,1.14333026,119220.0,119210.0,2e-08]
[1752848066629,1.14333026,119220.0,119190.0,0.43939586]
[1752848066630,0.167679,119200.0,119190.0,0.00697726]
[1752848066837,0.78255846,119200.0,119190.0,0.00697726]
[1752848067030,0.1677071,119180.0,119170.0,1.31858666]
[1752848067234,0.2809771,119180.0,119170.0,1.31858666]
[1752848067732,0.2809771,119180.0,119170.0,1.34684666]
[1752848068741,0.2809771,119180.0,119170.0,1.37640055]
[1752848068938,0.2809771,119180.0,119170.0,1.31668469]
[1752848069139,0.2608771,119180.0,119170.0,1.3085108]
[1752848070145,0.2608771,119180.0,119170.0,1.86983612]
[1752848070639,0.2608771,119180.0,119170.0,1.81012026]
[1752848071136,0.2608771,119180.0,119170.0,1.1407896]
[1752848071340,0.2792271,119180.0,119170.0,1.1194096]
[1752848071532,0.78083656,119180.0,119170.0,0.02989109]
[1752848071738,1.14163656,119180.0,119170.0,0.02989109]
[1752848071938,0.263591,119170.0,119160.0,0.67545109]
[1752848072140,0.78355046,119170.0,119160.0,0.02989109]
[1752848072341,0.281941,119170.0,119160.0,0.67573109]
[1752848072541,0.78355046,119170.0,119160.0,0.67573109]
[1752848073039,0.78355046,119170.0,119160.0,0.02989109]
[1752848073341,0.78355046,119170.0,119160.0,0.67565109]
[1752848073742,1.14435046,119170.0,119160.0,0.02989109]
[1752848074246,0.2145349,119160.0,119150.0,1.03633109]
[1752848074447,0.2819549,119160.0,119150.0,1.03633109]
[1752848074743,0.2819549,119160.0,119150.0,1.22339009]
[1752848075337,0.2636049,119160.0,119150.0,1.10482109]
[1752848075646,0.2819549,119160.0,119150.0,1.00644]
[1752848075846,0.1677488,119150.0,119140.0,1.13896466]
[1752848076046,0.2819688,119150.0,119140.0,1.15827466]
[1752848076238,0.78357826,119150.0,119140.0,0.68344399]
[1752848076443,0.78357826,119150.0,119140.0,0.0084329]
[1752848076645,0.2819828,119140.0,119130.0,1.0355357]
[1752848076841,0.2819828,119140.0,119130.0,1.2226224]
[1752848077243,0.2819828,119140.0,119130.0,1.19273131]
[1752848077546,0.2819828,119140.0,119130.0,1.02495461]
[1752848077746,0.2819828,119140.0,119130.0,1.19273111]
[1752848077948,0.2819828,119140.0,119130.0,1.02495461]
[1752848078344,1.14439226,119140.0,119130.0,0.64388461]
[1752848078541,0.78359226,119140.0,119130.0,8.461e-05]
[1752848078737,0.2819828,119140.0,119130.0,8.461e-05]
[1752848079045,0.78359226,119140.0,119130.0,8.461e-05]
[1752848079739,0.2819828,119140.0,119130.0,0.01939461]
[1752848079942,0.2819828,119140.0,119130.0,8.461e-05]
[1752848080744,0.1677759,119130.0,119120.0,1.00456]
[1752848080942,0.0887505,119120.0,119100.0,0.38011]
[1752848081143,0.2146041,119110.0,119100.0,0.3608]
[1752848081346,0.71621356,119110.0,119100.0,0.5286182]
[1752848081644,0.2636741,119110.0,119100.0,0.40791]
[1752848082047,0.2820241,119110.0,119100.0,0.38011]
[1752848082442,0.2820241,119110.0,119100.0,0.5479281]
[1752848082649,0.2820241,119110.0,119100.0,0.38011]
[1752848082850,0.2820241,119110.0,119100.0,0.01931]
[1752848083753,0.1678181,119100.0,119090.0,1.05426]
[1752848084052,0.2820381,119100.0,119090.0,1.02439]
[1752848084247,0.1678322,119090.0,119080.0,0.3886]
[1752848084442,0.60388076,119090.0,119070.0,0.40998]
[1752848084642,0.60388076,119090.0,119070.0,1.02299]
[1752848084643,0.1861963,119080.0,119070.0,1.02299]
[1752848084848,0.2820804,119070.0,119060.0,0.5757845]
[1752848085152,0.26359264,119070.0,119060.0,1.2184645]
[1752848085352,0.26359264,119070.0,119060.0,1.2398445]
[1752848085847,0.16772264,119070.0,119060.0,1.09877396]
[1752848086043,0.3476493,119080.0,119070.0,0.2363504]
[1752848086245,0.3476493,119080.0,119070.0,0.5971504]
[1752848088645,0.1022686,119090.0,119080.0,0.1678463]
[1752848088844,0.3476341,119090.0,119080.0,1.2403763]
[1752848090753,0.3056736,119090.0,119080.0,1.74198576]
[1752848091652,0.3056736,119090.0,119080.0,1.2403763]
[1752848091847,0.3240236,119090.0,119080.0,1.02335]
[1752848092456,0.82563306,119090.0,119080.0,0.3608]
[1752848092659,0.2820663,119080.0,119070.0,0.3608]
[1752848092856,0.78367576,119080.0,119070.0,1.00396]
[1752848093053,0.1678604,119070.0,119060.0,0.5757831]
[1752848093358,0.2820804,119070.0,119060.0,1.02315]
[1752848093556,0.2820804,119070.0,119060.0,1.00384]
[1752848093557,0.78368986,119070.0,119060.0,1.00384]
[1752848093754,0.1678745,119060.0,119050.0,0.38017592]
[1752848093960,0.78370396,119060.0,119050.0,1.00366592]
[1752848094257,0.2820945,119060.0,119050.0,1.00366592]
[1752848094950,0.2820945,119060.0,119050.0,1.17155452]
[1752848095155,0.2820945,119060.0,119050.0,1.19086452]
[1752848095354,0.2820945,119060.0,119050.0,1.21866452]
[1752848095853,0.2637445,119060.0,119050.0,1.24004452]
[1752848096959,0.78370396,119060.0,119050.0,1.00366592]
[1752848097363,0.78370396,119060.0,119050.0,0.64102592]
[1752848098053,0.78370396,119060.0,119050.0,1.18894452]
[1752848098256,0.2820945,119060.0,119050.0,1.18862452]
[1752848098455,0.2820945,119060.0,119050.0,1.23780452]
[1752848098858,0.2820945,119060.0,119050.0,1.02073592]
[1752848098859,0.78370396,119060.0,119050.0,1.02073592]
[1752848099261,0.78370396,119060.0,119050.0,1.00142592]
[1752848099453,0.78370396,119060.0,119050.0,0.64062592]
[1752848099656,0.78370396,119060.0,119050.0,6.592e-05]
[1752848100264,0.1678889,119050.0,119030.0,0.3608]
[1752848100457,0.1679171,119030.0,119020.0,1.00132]
[1752848100664,0.2825871,119030.0,119020.0,1.02105]
[1752848100863,0.2825871,119030.0,119020.0,1.1889817]
[1752848101163,0.2637871,119030.0,119020.0,1.2387317]
[1752848101459,0.78426666,119030.0,119020.0,0.01973]
[1752848101661,0.4075568,119020.0,119010.0,0.01973]
[1752848101856,0.40761909,119020.0,119010.0,0.828196]
[1752848102061,0.34683319,119020.0,119010.0,0.598226]
[1752848102363,0.34683319,119020.0,119010.0,1.238746]
[1752848102968,0.34683319,119020.0,119010.0,1.0708]
[1752848103162,0.86724265,119020.0,119010.0,1.02105]
[1752848103466,0.2169901,119000.0,118990.0,0.38053]
[1752848103664,0.78331972,119000.0,118990.0,1.03149691]
[1752848103868,0.28171026,119000.0,118990.0,0.66097]
[1752848104064,0.28171026,119000.0,118990.0,0.64124]
[1752848104673,0.78331972,119000.0,118990.0,0.64124]
[1752848104965,0.28171026,119000.0,118990.0,0.64124]
[1752848105271,0.78331972,119000.0,118990.0,0.8092142]
[1752848105471,0.78331972,119000.0,118990.0,0.64124]
[1752848105766,0.78331972,119000.0,118990.0,0.8092142]
[1752848105972,0.26291026,119000.0,118990.0,1.2394942]
[1752848107874,0.26291026,119000.0,118990.0,1.05014]
[1752848108072,0.78331972,119000.0,118990.0,1.00204]
[1752848109476,0.78331972,119000.0,118990.0,0.64124]
[1752848109677,0.2816442,118990.0,118980.0,0.66169]
[1752848109874,0.2816583,118980.0,118970.0,0.38894755]
[1752848110074,0.28173846,118980.0,118970.0,1.02237]
[1752848110978,0.28173846,118980.0,118970.0,1.1903724]
[1752848112270,8.016e-05,118980.0,118970.0,2.10285186]
[1752848112472,0.16806846,118980.0,118970.0,2.10285186]
[1752848113478,0.16806846,118980.0,118970.0,1.6012424]
[1752848113679,0.26293846,118980.0,118970.0,1.2190624]
[1752848113876,0.28173846,118980.0,118970.0,1.1906924]
[1752848114580,0.28173846,118980.0,118970.0,1.02269]
[1752848114775,0.28173846,118980.0,118970.0,1.00296]
[1752848115289,0.78334792,118980.0,118970.0,1.1709624]
[1752848115489,0.28173846,118980.0,118970.0,1.1906924]
[1752848115690,0.28173846,118980.0,118970.0,1.02269]
[1752848115993,0.78334792,118980.0,118970.0,1.02269]
[1752848116195,0.78334792,118980.0,118970.0,1.00296]
[1752848116487,0.78326776,118980.0,118970.0,1.00188]
[1752848116685,0.78326776,118980.0,118970.0,0.3608]
[1752848116881,0.2816583,118980.0,118970.0,0.38053]
[1752848117080,0.18686846,118980.0,118970.0,1.2385824]
[1752848117285,8.016e-05,118980.0,118970.0,1.62809586]
[1752848117486,0.16806846,118980.0,118970.0,2.27021586]
[1752848117991,0.26293846,118980.0,118970.0,1.6007824]
[1752848118293,0.26293846,118980.0,118970.0,1.6014224]
[1752848118887,0.26293846,118980.0,118970.0,0.9583824]
[1752848119093,0.26293846,118980.0,118970.0,1.6014224]
[1752848120390,0.16806846,118980.0,118970.0,2.10303186]
[1752848120592,0.16806846,118980.0,118970.0,2.10251186]
[1752848120794,0.21390846,118980.0,118970.0,1.6009024]
[1752848120992,0.26293846,118980.0,118970.0,0.9583824]
[1752848121199,0.26293846,118980.0,118970.0,1.6007424]
[1752848121990,0.16806846,118980.0,118970.0,1.6007424]
[1752848122190,0.16806846,118980.0,118970.0,2.10239186]
[1752848122387,0.16806846,118980.0,118970.0,2.13208295]
[1752848122594,8.016e-05,118980.0,118970.0,2.13232295]
[1752848123195,8.016e-05,118980.0,118970.0,2.17687643]
[1752848123390,0.16806846,118980.0,118970.0,1.64537588]
[1752848123590,8.016e-05,118980.0,118970.0,2.17689226]
[1752848123786,8.016e-05,118980.0,118970.0,1.64537588]
[1752848123985,0.16806846,118980.0,118970.0,2.17689206]
[1752848124291,0.16806846,118980.0,118970.0,2.14698534]
[1752848124688,0.16806846,118980.0,118970.0,2.17690897]
[1752848124894,0.26293846,118980.0,118970.0,1.63074603]
[1752848125196,0.26293846,118980.0,118970.0,2.13235549]
[1752848125396,0.26293846,118980.0,118970.0,2.17690897]
[1752848125891,8.016e-05,118980.0,118970.0,2.17690897]
[1752848126094,8.016e-05,118980.0,118970.0,1.64537588]
[1752848126290,8.016e-05,118980.0,118970.0,2.14698534]
[1752848126496,8.016e-05,118980.0,118970.0,1.64537588]
[1752848126696,8.016e-05,118980.0,118970.0,2.14698534]
[1752848126902,0.16806846,118980.0,118970.0,2.14698534]
[1752848128297,0.16806846,118980.0,118970.0,1.6008224]
[1752848128499,8.016e-05,118980.0,118970.0,2.33025172]
[1752848128900,0.1679681,119000.0,118990.0,0.1679742]
[1752848129093,0.1679681,119000.0,118990.0,1.70322337]
[1752848129293,0.2519299,119010.0,119000.0,0.1679601]
[1752848129489,0.2519127,119020.0,119010.0,0.167946]
[1752848129693,0.80800626,119060.0,119050.0,0.1678895]
[1752848129694,0.2706325,119060.0,119050.0,0.1678895]
[1752848129905,0.2706325,119060.0,119050.0,1.67757896]
[1752848129906,0.3126044,119060.0,119050.0,1.67757896]
[1752848130198,0.209861,119060.0,119050.0,1.67773896]
[1752848130494,0.2556722,119070.0,119060.0,0.1684354]
[1752848130696,0.2078505,119080.0,119070.0,0.1683413]
[1752848130996,0.04,119080.0,119070.0,1.18551361]
[1752848131292,0.0605412,119110.0,119070.0,1.18551361]
[1752848131293,0.2992574,119100.0,119090.0,0.1678315]
[1752848131493,0.2153432,119100.0,119090.0,1.20761614]
[1752848131796,0.2813732,119100.0,119090.0,0.55857774]
[1752848131996,0.78298266,119100.0,119090.0,1.01044]
[1752848132593,0.78298266,119100.0,119090.0,1.0104]
[1752848132998,0.2813732,119100.0,119090.0,1.1782331]
[1752848133194,0.2813732,119100.0,119090.0,0.8174331]
[1752848133393,0.2813732,119100.0,119090.0,1.1782331]
[1752848133597,0.2813732,119100.0,119090.0,1.1780731]
[1752848134399,0.78298266,119100.0,119090.0,1.01016]
[1752848134803,0.78298266,119100.0,119090.0,1.1779931]
[1752848135000,0.1678754,119060.0,119050.0,0.39074464]
[1752848135199,0.11354,119050.0,119040.0,0.5287026]
[1752848135504,0.2814295,119050.0,119040.0,1.1789426]
[1752848136000,0.2628113,119070.0,119060.0,0.2098336]
[1752848136213,0.3047648,119080.0,119070.0,0.1678613]
[1752848136408,0.1678613,119070.0,119060.0,0.5706319]
[1752848136604,0.1678754,119060.0,119050.0,0.5706544]
[1752848136907,0.1678754,119060.0,119050.0,1.2221744]
[1752848137108,0.1678754,119060.0,119050.0,1.07226386]
[1752848137401,0.1678754,119060.0,119050.0,1.72414386]
[1752848137609,0.1678754,119060.0,119050.0,1.2227744]
[1752848137797,0.1678754,119060.0,119050.0,1.72438386]
[1752848139105,0.3178878,119080.0,119070.0,0.1678613]
[1752848139304,0.7495025,119080.0,119070.0,0.65196]
[1752848139804,0.7680925,119080.0,119070.0,0.65196]
[1752848140006,0.1678613,119070.0,119060.0,0.6125996]
[1752848140301,0.4073278,119060.0,119050.0,0.3608]
[1752848140502,0.2628395,119050.0,119040.0,0.63869081]
[1752848140706,0.2814295,119050.0,119040.0,0.88755701]
[1752848141104,0.2628395,119050.0,119040.0,1.74996647]
[1752848141305,0.1678853,119060.0,119050.0,0.2518291]
[1752848141507,0.1678853,119060.0,119050.0,1.15620876]
[1752848141913,0.1678853,119060.0,119050.0,1.11423856]
[1752848142211,0.2628353,119060.0,119050.0,1.11423856]
[1752848142402,0.2628353,119060.0,119050.0,1.76635856]
[1752848142601,0.2628353,119060.0,119050.0,1.11423856]
[1752848142900,0.1864609,119070.0,119060.0,0.1678754]
[1752848142901,0.1678727,119070.0,119060.0,0.1678754]
[1752848143107,0.1678613,119070.0,119060.0,1.15618526]
[1752848143409,0.3047668,119080.0,119070.0,0.1678613]
[1752848143606,0.3047668,119080.0,119070.0,1.32251076]
[1752848143808,0.3047668,119080.0,119070.0,1.68331076]
[1752848144013,0.2098168,119080.0,119070.0,1.68331076]
[1752848144214,0.7075161,119090.0,119080.0,0.1678472]
[1752848144613,0.7075161,119090.0,119080.0,0.66945666]
[1752848144909,0.2813872,119080.0,119070.0,0.1678503]
[1752848145114,0.2814013,119070.0,119060.0,0.6125984]
[1752848145317,0.2814013,119070.0,119060.0,0.8634698]
[1752848145806,0.1678895,119050.0,119040.0,0.9044386]
[1752848146005,0.2628395,119050.0,119040.0,0.6126386]
[1752848146201,0.2628395,119050.0,119040.0,1.2661186]
[1752848147114,0.2628395,119050.0,119040.0,1.76772806]
[1752848148210,0.2628395,119050.0,119040.0,1.2661186]
[1752848149117,0.2814295,119050.0,119040.0,1.2661186]
[1752848150206,0.6656084,119060.0,119050.0,0.1678895]
[1752848150409,0.6656084,119060.0,119050.0,0.66949896]
[1752848150410,0.3048084,119060.0,119050.0,0.66949896]
[1752848150609,0.6656084,119060.0,119050.0,0.66949896]
[1752848150913,0.3048084,119060.0,119050.0,0.66949896]
[1752848151214,0.6656084,119060.0,119050.0,0.66949896]
[1752848151414,0.3048084,119060.0,119050.0,0.1678895]
[1752848151613,0.3048084,119060.0,119050.0,0.66949896]
[1752848151915,0.3048084,119060.0,119050.0,1.03029896]
[1752848152212,0.3233785,119070.0,119060.0,0.1678754]
[1752848152508,0.09495,119070.0,119060.0,1.68272486]
[1752848152914,0.7261261,119080.0,119070.0,0.1678613]
[1752848153105,0.7261261,119080.0,119070.0,0.66947076]
[1752848153106,0.2627972,119080.0,119070.0,0.66947076]
[1752848153309,0.2627972,119080.0,119070.0,1.03027076]
[1752848153506,0.2627972,119080.0,119070.0,0.66947076]
[1752848153811,0.2627972,119080.0,119070.0,0.1678613]
[1752848154011,0.2627972,119080.0,119070.0,0.66947076]
[1752848154311,0.09495,119080.0,119070.0,1.03027076]
[1752848155215,0.1864347,119090.0,119080.0,0.1678472]
[1752848155216,0.3233432,119090.0,119080.0,0.1678472]
[1752848155415,0.3233432,119090.0,119080.0,1.1801672]
[1752848155813,0.09495,119070.0,119060.0,0.43271334]
[1752848156011,0.2814013,119070.0,119060.0,1.21029334]
[1752848156617,0.2814013,119070.0,119060.0,0.84949334]
[1752848156818,1.14381076,119070.0,119060.0,0.68206464]
[1752848157020,0.2814154,119060.0,119050.0,0.07494916]
[1752848157215,0.6422154,119060.0,119050.0,0.68218464]
[1752848157411,0.6422154,119060.0,119050.0,0.72718916]
[1752848157715,0.2814154,119060.0,119050.0,0.02994464]
[1752848157917,0.2814154,119060.0,119050.0,0.85019414]
[1752848158114,0.6422154,119060.0,119050.0,0.68230464]
[1752848158315,0.6422154,119060.0,119050.0,0.72730916]
[1752848159520,1.14382486,119060.0,119050.0,0.69736452]
[1752848159918,0.6422154,119060.0,119050.0,0.89522873]
[1752848160116,0.6422154,119060.0,119050.0,0.72733923]
[1752848160415,0.6422154,119060.0,119050.0,0.02997471]
[1752848160620,1.14382486,119060.0,119050.0,0.02997471]
[1752848160918,0.2888295,119050.0,119040.0,0.07497923]
[1752848161118,1.15123896,119050.0,119040.0,0.02997471]
[1752848161316,1.31923896,119050.0,119040.0,0.02997471]
[1752848161519,0.2677636,119040.0,119030.0,0.69732452]
[1752848161711,1.15125306,119040.0,119030.0,0.04500452]
[1752848161915,1.15125306,119040.0,119010.0,0.05971586]
[1752848161916,0.1679177,119030.0,119020.0,0.69740452]
[1752848162119,1.15126716,119030.0,119020.0,0.69736452]
[1752848162415,1.15126716,119030.0,119020.0,0.04500452]
[1752848164516,0.288886,119010.0,119000.0,0.05971586]
[1752848164716,1.51209546,119010.0,119000.0,0.05971586]
[1752848164922,0.3518052,119000.0,118990.0,0.65232]
[1752848165119,1.27728756,119000.0,118990.0,0.65232]
[1752848165314,1.27728756,119000.0,118990.0,0.71225184]
[1752848166514,0.7756781,119000.0,118990.0,0.71225184]
[1752848166723,1.27728756,119000.0,118990.0,0.71225184]
[1752848166926,1.27728756,119000.0,118990.0,0.65232]
[1752848167319,0.7756781,119000.0,118990.0,0.69726262]
[1752848167523,0.7756781,119000.0,118990.0,0.86523682]
[1752848167714,0.7756781,119000.0,118990.0,0.65232]
[1752848167915,1.27728756,119000.0,118990.0,0.65232]
[1752848168116,1.27728756,119000.0,118970.0,0.03850104]
[1752848168117,0.2889283,118980.0,118970.0,0.05346366]
[1752848168423,0.6497283,118980.0,118970.0,0.65212]
[1752848168628,0.6497283,118980.0,118970.0,0.8201224]
[1752848168629,0.2889283,118980.0,118970.0,0.8201224]
[1752848168829,0.2889283,118980.0,118970.0,0.8501024]
[1752848169021,0.2889283,118980.0,118970.0,1.35171186]
[1752848169322,0.3729154,118990.0,118980.0,0.1979683]
[1752848169523,0.3729154,118990.0,118980.0,0.39078]
[1752848169721,0.3729154,118990.0,118980.0,0.3608]
[1752848170026,0.2889283,118980.0,118970.0,1.80154736]
[1752848170224,0.2889283,118980.0,118970.0,1.71755136]
[1752848171329,0.2678483,118980.0,118970.0,1.71959136]
[1752848172027,0.2889283,118980.0,118970.0,1.71755136]
[1752848172927,0.2889283,118980.0,118970.0,1.2159419]
[1752848173327,0.2889283,118980.0,118970.0,1.71755136]
[1752848173621,0.2889283,118980.0,118970.0,1.72598855]
[1752848173821,0.2889283,118980.0,118970.0,1.72802855]
[1752848174218,0.2199183,118980.0,118970.0,1.72802855]
[1752848174529,0.2678483,118980.0,118970.0,1.71755136]
[1752848174827,0.2889283,118980.0,118970.0,1.71755136]
[1752848175327,0.2889283,118980.0,118970.0,1.2159419]
[1752848175527,0.2889283,118980.0,118970.0,1.22417779]
[1752848176522,0.2678483,118980.0,118970.0,1.22621779]
[1752848176729,0.2889283,118980.0,118970.0,1.22417779]
[1752848176923,0.2889283,118980.0,118970.0,1.01292]
[1752848177129,0.2889283,118980.0,118970.0,0.65212]